bitfinex-derivatives/quotes_ETHF0:USTF0_20250123
["timestamp","ask_amount","ask_price","bid_price","bid_amount"]
[1737647369046,0.61285,3263.6,3263.1,3.2078]
[1737647369243,2.88294427,3263.8,3263.1,3.2078]
[1737647369452,0.61289,3263.4,3263.1,3.2078]
[1737647369646,2.88294427,3263.8,3263.1,3.2078]
[1737647369844,0.61286,3263.5,3263.1,3.2078]
[1737647370041,6.54221866,3263.9,3263.1,3.2078]
[1737647370241,6.54221866,3263.9,3263.1,3.21239298]
[1737647370943,0.61291,3263.2,3263.1,0.00459298]
[1737647371136,5.0,3263.2,3262.0,3.2078]
[1737647371334,3.2078,3263.3,3262.0,3.2078]
[1737647371335,3.2078,3262.8,3262.0,3.2078]
[1737647371542,0.61309,3262.3,3262.0,3.2078]
[1737647371742,3.82089,3262.3,3261.8,4.77379436]
[1737647371943,3.2078,3262.3,3261.8,4.77379436]
[1737647372641,3.2078,3262.3,3262.1,0.61312]
[1737647372837,3.2078,3262.3,3261.8,4.77379436]
[1737647373042,3.2078,3262.3,3261.8,8.59476436]
[1737647373243,3.2078,3262.3,3261.8,7.98159436]
[1737647373649,3.2078,3262.3,3261.8,8.59476436]
[1737647373849,3.2078,3262.3,3261.8,7.98159436]
[1737647374152,3.2078,3262.3,3261.8,3.2078]
[1737647374346,3.2078,3262.3,3262.1,0.61311]
[1737647374546,0.00459298,3262.4,3261.8,3.2078]
[1737647374844,0.00459298,3262.4,3262.3,3.82088]
[1737647375248,0.00459298,3262.4,3262.3,3.2078]
[1737647375450,0.00459298,3262.4,3262.3,3.82088]
[1737647376654,0.00459298,3262.4,3262.3,3.2078]
[1737647376986,3.21239298,3262.4,3261.7,0.00459298]
[1737647377148,3.2078,3261.9,3261.7,0.00459298]
[1737647379051,5.1006,3262.3,3261.7,0.00459298]
[1737647379242,3.2078,3262.3,3261.7,0.00459298]
[1737647379654,3.2078,3262.3,3261.9,0.61316]
[1737647379853,3.2078,3262.3,3262.0,0.61313]
[1737647380055,3.2078,3262.3,3261.7,0.00459298]
[1737647380456,3.2078,3262.3,3261.7,0.61778298]
[1737647380661,3.2078,3262.3,3261.7,0.00459298]
[1737647381553,3.2078,3262.3,3261.7,0.61778298]
[1737647381755,3.2078,3262.3,3261.9,0.61316]
[1737647381953,3.2078,3262.3,3262.0,0.61314]
[1737647382151,3.2078,3262.3,3262.1,1.8477]
[1737647383050,3.2078,3262.3,3262.1,2.46081]
[1737647383256,0.00459298,3262.4,3262.1,2.46081]
[1737647383454,0.00459298,3262.4,3262.2,2.3899]
[1737647383652,0.00459298,3262.4,3262.2,1.7768]
[1737647383851,0.00459298,3262.4,3262.1,1.8477]
[1737647384049,0.00459298,3262.4,3261.8,3.2078]
[1737647384561,0.00459298,3262.4,3262.3,3.2078]
[1737647387555,0.00459298,3262.4,3261.9,3.2078]
[1737647387752,3.82089,3262.3,3261.7,1.78139298]
[1737647388151,3.2078,3262.3,3261.7,1.78139298]
[1737647388857,0.00459298,3262.4,3261.9,3.2078]
[1737647389054,0.00459298,3262.4,3262.0,0.61313]
[1737647389256,0.00459298,3262.4,3261.9,3.2078]
[1737647389460,0.00459298,3262.4,3261.9,3.82095]
[1737647389663,0.00459298,3262.4,3261.9,3.2078]
[1737647390154,0.61766298,3262.4,3261.9,3.2078]
[1737647390353,0.61309,3262.3,3261.9,3.2078]
[1737647390552,0.00459298,3262.4,3261.9,3.2078]
[1737647391156,0.00459298,3262.4,3261.7,2.39458298]
[1737647391353,0.00459298,3262.4,3261.9,3.2078]
[1737647391865,0.00459298,3262.4,3261.9,3.82095]
[1737647392064,0.00459298,3262.4,3261.9,3.2078]
[1737647392559,0.00459298,3262.4,3262.2,0.61304]
[1737647392858,0.00459298,3262.4,3262.2,0.61303]
[1737647393056,0.00459298,3262.4,3262.3,3.2078]
[1737647393450,0.00459298,3262.4,3261.9,3.2078]
[1737647393852,2.89259493,3262.4,3261.9,3.2078]
[1737647394255,3.2078,3262.3,3261.7,1.78139298]
[1737647394455,3.2078,3262.3,3261.7,2.39452298]
[1737647394653,2.89259493,3262.4,3261.8,0.61311]
[1737647394654,0.00459298,3262.4,3261.8,0.61311]
[1737647394864,0.00459298,3262.4,3261.9,3.2078]
[1737647395964,0.00459298,3262.4,3262.0,0.61307]
[1737647396151,0.00459298,3262.4,3261.9,3.2078]
[1737647396650,0.00459298,3262.4,3262.0,0.61308]
[1737647396859,0.00459298,3262.4,3261.9,3.8209]
[1737647397157,0.00459298,3262.4,3261.9,3.2078]
[1737647397370,0.61760298,3262.4,3261.9,3.2078]
[1737647397560,0.00459298,3262.4,3261.9,3.2078]
[1737647397861,0.00459298,3262.4,3261.9,3.8209]
[1737647398061,2.89259493,3262.4,3261.9,3.2078]
[1737647398253,6.10039493,3262.4,3261.7,1.78139298]
[1737647399060,6.71340493,3262.4,3261.7,1.78139298]
[1737647399256,6.10039493,3262.4,3261.7,1.78139298]
[1737647399852,6.10039493,3262.4,3261.9,0.61309]
[1737647400057,3.21239298,3262.4,3261.7,1.78139298]
[1737647400260,3.21239298,3262.4,3261.9,0.6131]
[1737647400463,3.21239298,3262.4,3261.7,1.78139298]
[1737647400657,3.21239298,3262.4,3262.1,0.61306]
[1737647400853,3.21239298,3262.4,3261.8,40.8]
[1737647401054,0.00459298,3262.4,3262.2,0.61304]
[1737647401253,0.00459298,3262.4,3262.3,3.2078]
[1737647401760,0.00459298,3262.4,3262.3,3.82083]
[1737647402258,0.00459298,3262.4,3262.3,3.2078]
[1737647403258,0.00459298,3262.4,3262.0,1.7596]
[1737647403457,2.89259493,3262.4,3261.9,3.2078]
[1737647403774,0.00459298,3262.4,3262.0,0.61307]
[1737647404062,0.00459298,3262.4,3261.9,44.0078]
[1737647404365,0.00459298,3262.4,3262.0,0.61308]
[1737647404552,0.00459298,3262.4,3261.9,3.2078]
[1737647404764,0.00459298,3262.4,3262.3,0.61303]
[1737647405158,0.00459298,3262.4,3262.0,43.27037]
[1737647405354,0.00459298,3262.4,3262.2,0.61303]
[1737647405764,0.00459298,3262.4,3262.3,3.82083]
[1737647405961,7.09411467,3263.2,3262.3,3.82083]
[1737647405962,7.09411467,3263.2,3262.9,0.6129]
[1737647406166,7.09411467,3263.2,3262.9,3.2078]
[1737647408269,0.61288,3263.1,3262.9,3.2078]
[1737647408476,7.09411467,3263.2,3262.9,3.2078]
[1737647409671,3.50089195,3263.0,3262.9,3.2078]
[1737647410269,7.09411467,3263.2,3262.9,3.2078]
[1737647410666,0.61289,3263.0,3262.9,3.2078]
[1737647411062,1.8349,3263.1,3262.9,3.2078]
[1737647411260,7.09411467,3263.2,3262.9,3.2078]
[1737647411470,6.54317251,3263.1,3262.9,3.2078]
[1737647412068,5.93029251,3263.1,3262.7,0.61294]
[1737647412265,5.93029251,3263.1,3263.0,0.61289]
[1737647412676,5.93029251,3263.1,3262.8,4.26803]
[1737647412975,5.93029251,3263.1,3262.2,3.2078]
[1737647413274,5.93029251,3263.1,3262.2,5.68253]
[1737647413467,5.93029251,3263.1,3262.3,0.61303]
[1737647413468,0.61291,3263.0,3262.3,0.61303]
[1737647413672,6.54317251,3263.1,3262.3,0.61303]
[1737647413862,6.54317251,3263.1,3262.6,3.2078]
[1737647413863,0.6129,3263.0,3262.6,3.2078]
[1737647414164,5.93029251,3263.1,3262.6,3.2078]
[1737647414569,9.13809251,3263.1,3262.6,3.2078]
[1737647414772,0.61295,3262.7,3262.6,3.2078]
[1737647415268,0.61304,3262.2,3262.1,3.2078]
[1737647415465,0.61309,3262.0,3261.7,0.00459298]
[1737647415772,6.09580195,3262.3,3261.7,0.00459298]
[1737647415966,0.61312,3261.8,3261.7,0.00459298]
[1737647416175,6.09580195,3262.3,3261.7,0.00459298]
[1737647416572,0.61311,3261.9,3261.7,0.00459298]
[1737647416975,6.09580195,3262.3,3261.7,0.00459298]
[1737647417571,3.2078,3262.3,3261.7,0.61772298]
[1737647417973,3.2078,3262.3,3261.9,0.6131]
[1737647418284,3.2078,3262.9,3262.0,3.2078]
[1737647418491,3.82072,3262.9,3262.2,0.61304]
[1737647418772,4.74011,3262.9,3262.3,42.6542]
[1737647418969,2.88800195,3262.7,3261.8,3.8361]
[1737647419170,2.88800195,3262.3,3261.8,1.9665]
[1737647419482,0.6131,3262.0,3261.8,1.9665]
[1737647419674,0.6131,3261.9,3261.7,3.21239298]
[1737647419876,1.53261,3262.2,3261.7,3.21239298]
[1737647420075,0.61312,3261.8,3261.7,3.21239298]
[1737647420779,0.61312,3261.8,3261.7,0.00459298]
[1737647424083,7.51892,3261.8,3260.7,5.0231]
[1737647424378,0.61329,3260.9,3260.3,3.2078]
[1737647424570,2.88800195,3261.1,3260.3,3.2078]
[1737647424768,3.2078,3261.4,3260.3,3.2078]
[1737647424980,0.61325,3261.1,3260.8,3.2078]
[1737647425287,0.0046001,3261.3,3260.8,3.2078]
[1737647426180,0.61326,3261.1,3260.7,1.8153]
[1737647426384,0.61327,3261.0,3260.8,3.2078]
[1737647426578,0.0046001,3261.3,3260.8,3.2078]
[1737647426782,0.61332,3260.7,3260.6,0.0046001]
[1737647428079,1.9649,3261.0,3260.6,0.0046001]
[1737647428580,0.0300469,3260.8,3260.6,0.0046001]
[1737647428780,0.61332,3260.7,3260.6,0.0046001]
[1737647429675,0.6433669,3260.7,3260.6,0.0046001]
[1737647430075,0.67341376,3260.7,3260.6,0.0046001]
[1737647431480,0.06009376,3260.7,3260.6,0.0046001]
[1737647431683,0.0046001,3261.3,3260.6,0.0046001]
[1737647431684,5.92900951,3260.9,3260.6,0.0046001]
[1737647431986,5.92900951,3260.9,3260.7,0.61332]
[1737647432180,5.92900951,3260.9,3260.8,40.8]
[1737647432378,7.09871477,3261.3,3260.8,40.8]
[1737647432584,7.05419874,3261.5,3261.4,0.61319]
[1737647432787,7.05419874,3261.5,3261.4,3.50119195]
[1737647432788,2.52088876,3261.5,3261.4,3.50119195]
[1737647433092,4.9872,3262.9,3261.4,7.88800195]
[1737647433281,4.9872,3262.9,3262.1,3.2078]
[1737647433475,0.61295,3262.7,3262.1,3.2078]
[1737647433674,4.9872,3262.9,3262.1,3.2078]
[1737647433880,0.61298,3262.6,3262.1,3.2078]
[1737647434093,0.61304,3262.3,3262.1,3.2078]
[1737647434285,0.61304,3262.2,3262.1,3.2078]
[1737647434976,0.0046001,3262.8,3262.4,0.613]
[1737647435283,0.0046001,3262.8,3262.7,0.61295]
[1737647435589,0.0046001,3262.8,3262.6,0.61296]
[1737647435888,0.0046001,3262.8,3262.6,2.49996]
[1737647436083,0.0046001,3262.8,3262.6,4.23916]
[1737647436285,0.0046001,3262.8,3262.7,0.61295]
[1737647436973,0.0046001,3262.8,3262.6,3.6262]
[1737647437289,0.0046001,3262.8,3262.7,0.61295]
[1737647437784,0.0046001,3262.8,3262.6,4.23916]
[1737647438194,0.0046001,3262.8,3262.6,3.6262]
[1737647438487,0.0046001,3262.8,3262.6,1.887]
[1737647438684,0.0046001,3262.8,3262.4,3.2078]
[1737647439385,0.0046001,3262.8,3262.7,0.61295]
[1737647439582,0.0046001,3262.8,3262.6,0.61295]
[1737647439881,0.0046001,3262.8,3262.7,0.61295]
[1737647440881,3.2098,3264.7,3262.7,5.0]
[1737647441191,0.61261,3264.5,3263.6,3.2078]
[1737647441386,3.8002,3264.6,3263.6,3.2078]
[1737647441579,0.61261,3264.5,3263.7,1.9667]
[1737647441885,0.61263,3264.4,3263.7,42.7667]
[1737647442087,0.0046001,3264.4,3263.7,42.7667]
[1737647442288,0.0046001,3264.4,3264.0,3.82049]
[1737647442598,0.0046001,3264.4,3264.3,2.88800195]
[1737647442772,0.0046001,3264.4,3264.3,3.50065195]
[1737647442973,0.0046001,3264.4,3264.3,2.88800195]
[1737647443187,0.61243,3265.5,3264.3,3.50064195]
[1737647443384,0.61246,3265.3,3264.8,3.2078]
[1737647443584,0.61249,3265.2,3264.8,3.2078]
[1737647443886,0.61249,3265.2,3264.4,3.2078]
[1737647443887,3.2078,3265.2,3264.4,3.2078]
[1737647444190,3.2078,3264.7,3264.0,0.0046001]
[1737647444386,3.8169,3264.6,3264.0,0.0046001]
[1737647444580,0.61268,3264.1,3264.0,0.0046001]
[1737647445385,3.8169,3264.6,3264.0,0.0046001]
[1737647445588,0.61267,3264.2,3264.0,0.0046001]
[1737647445786,0.61268,3264.1,3264.0,0.0046001]
[1737647446285,0.61268,3264.2,3264.0,0.0046001]
[1737647446490,0.61268,3264.1,3264.0,0.0046001]
[1737647448286,3.2078,3264.3,3264.0,0.0046001]
[1737647448787,3.8169,3264.6,3264.0,0.0046001]
[1737647449088,0.61263,3264.4,3264.0,0.0046001]
[1737647449293,7.0247,3264.6,3264.0,0.0046001]
[1737647449791,0.61268,3264.2,3264.0,0.0046001]
[1737647449989,0.61268,3264.1,3264.0,0.0046001]
[1737647452184,7.0247,3264.6,3264.0,0.0046001]
[1737647452584,0.61268,3264.1,3264.0,0.0046001]
[1737647452785,3.82048,3264.1,3264.0,0.0046001]
[1737647452990,8.82048,3264.1,3264.0,0.0046001]
[1737647453193,8.82048,3264.1,3262.9,3.2078]
[1737647453194,12.15646775,3264.1,3262.9,3.2078]
[1737647453394,3.2078,3263.4,3262.9,3.2078]
[1737647453594,0.61289,3263.0,3262.9,3.2078]
[1737647453794,1.8289,3263.3,3262.4,44.0078]
[1737647453992,0.61287,3263.1,3262.5,0.61298]
[1737647454189,0.61287,3263.1,3262.4,44.6208]
[1737647454395,0.6174701,3263.1,3262.5,0.0046001]
[1737647454787,0.0046001,3263.1,3262.5,0.6175701]
[1737647454991,0.0046001,3263.1,3262.5,0.0046001]
[1737647455298,0.61291,3262.9,3262.5,0.0046001]
[1737647455692,0.6129,3263.0,3262.5,0.0046001]
[1737647455888,0.0046001,3263.1,3262.5,0.0046001]
[1737647455889,0.61295,3262.7,3262.5,0.0046001]
[1737647456195,0.61294,3262.8,3262.5,0.0046001]
[1737647456498,1.9246,3263.0,3262.5,0.0046001]
[1737647456698,3.2078,3262.7,3262.5,0.0046001]
[1737647456900,0.61308,3262.0,3261.9,3.2078]
[1737647457094,4.74043,3262.2,3261.2,3.2078]
[1737647457292,0.61319,3261.5,3261.2,3.2078]
[1737647457495,0.6132,3261.4,3261.2,3.2078]
[1737647457699,0.61308,3262.0,3261.2,3.2078]
[1737647457997,0.61308,3262.0,3260.3,2.10088803]
[1737647457998,3.2078,3261.5,3260.3,2.88800195]
[1737647458195,1.53287,3261.7,3260.2,4.77379436]
[1737647458196,0.61333,3260.7,3260.2,4.77379436]
[1737647458399,0.61333,3260.7,3260.6,0.0046001]
[1737647458696,0.0046001,3260.8,3260.6,0.0046001]
[1737647459198,0.0046001,3260.8,3260.6,3.2124001]
[1737647459499,0.0046001,3260.8,3260.7,2.88800195]
[1737647459697,0.03461078,3260.8,3260.7,1.9958]
[1737647460896,0.05850574,3260.8,3260.7,1.9958]
[1737647461299,0.05850574,3260.8,3260.7,2.60912]
[1737647461494,3.2078,3261.5,3261.1,0.61325]
[1737647461692,3.2078,3261.5,3260.7,1.9958]
[1737647461900,3.2078,3261.5,3261.2,40.8]
[1737647462103,0.61319,3261.4,3261.2,40.8]
[1737647462294,0.61327,3261.0,3260.6,3.2124001]
[1737647462598,0.61332,3260.7,3260.6,3.2124001]
[1737647462900,3.82112,3260.7,3260.6,0.0046001]
[1737647463099,3.82112,3260.7,3259.8,0.8430235]
[1737647463100,0.61343,3260.2,3259.8,0.8430235]
[1737647463300,0.61343,3260.2,3259.5,3.2078]
[1737647463301,1.9722,3260.6,3259.1,3.2078]
[1737647463602,3.2078,3260.3,3259.1,3.2078]
[1737647464091,0.61346,3260.0,3259.4,0.0046001]
[1737647464299,3.2078,3260.3,3259.4,0.0046001]
[1737647464604,3.2078,3260.3,3259.5,3.2078]
[1737647464605,0.61346,3260.0,3259.5,3.2078]
[1737647464817,3.2078,3260.3,3259.5,3.2078]
[1737647465003,0.61346,3260.0,3259.5,3.2078]
[1737647465207,3.82121,3260.3,3259.5,3.2078]
[1737647465402,0.61343,3260.2,3259.5,3.2078]
[1737647465597,3.2078,3260.3,3259.5,3.2078]
[1737647466000,3.8212,3260.3,3259.5,3.2078]
[1737647466208,3.2078,3260.3,3259.5,3.2078]
[1737647466509,3.8212,3260.3,3259.5,3.2078]
[1737647466810,0.6134,3260.3,3259.5,3.2078]
[1737647467105,1.9722,3260.6,3259.5,3.2078]
[1737647467300,1.9722,3260.6,3259.6,40.8]
[1737647467699,2.58554,3260.6,3259.8,0.61349]
[1737647467901,1.9722,3260.6,3259.6,42.67]
[1737647468300,0.61349,3259.9,3259.5,3.2078]
[1737647468606,3.2078,3260.3,3259.5,3.2078]
[1737647468812,0.61345,3260.1,3259.5,3.2078]
[1737647469000,3.2078,3260.3,3259.5,3.2078]
[1737647469198,0.61347,3260.0,3259.5,3.2078]
[1737647469403,3.2078,3260.3,3259.5,3.2078]
[1737647469804,0.61348,3259.9,3259.5,3.2078]
[1737647470299,3.2078,3260.3,3259.4,0.0046001]
[1737647470505,0.61348,3259.9,3259.4,0.0046001]
[1737647470701,3.2078,3260.3,3259.4,0.0046001]
[1737647470901,0.61347,3260.0,3259.4,0.0046001]
[1737647471109,3.2078,3260.3,3259.4,0.0046001]
[1737647471309,0.61349,3259.9,3259.5,3.2078]
[1737647471510,3.2078,3260.3,3259.4,0.0046001]
[1737647472014,1.53341,3260.5,3259.4,0.0046001]
[1737647472223,0.61342,3260.2,3259.5,0.61354]
[1737647472415,1.9722,3260.6,3259.5,3.2078]
[1737647472817,0.61337,3260.5,3259.6,0.61353]
[1737647473014,1.9722,3260.6,3259.5,3.2078]
[1737647473616,0.61344,3260.1,3259.5,3.2078]
[1737647473808,0.61339,3260.4,3259.7,0.61351]
[1737647474014,0.03012304,3260.1,3259.5,3.2078]
[1737647474211,0.03012304,3260.1,3259.9,0.61347]
[1737647474408,0.03012304,3260.1,3259.6,0.61353]
[1737647474608,0.03012304,3260.1,3260.0,3.2078]
[1737647474816,0.03012304,3260.1,3259.7,2.0112]
[1737647475013,0.03012304,3259.9,3259.7,2.0112]
[1737647475210,0.04206134,3259.8,3259.7,2.0112]
[1737647475409,0.04206134,3259.8,3259.6,3.2078]
[1737647476318,0.04206134,3259.7,3259.6,3.2078]
[1737647476522,0.65557134,3259.7,3259.4,0.0046001]
[1737647476718,0.04206134,3259.7,3259.4,0.0046001]
[1737647477216,1.8413,3259.9,3259.4,0.0046001]
[1737647477408,0.61355,3259.5,3259.4,0.0046001]
[1737647477913,5.0,3259.5,3258.7,3.2078]
[1737647478119,3.2078,3259.2,3258.1,0.6138]
[1737647478315,0.04206134,3258.7,3258.0,5.1238]
[1737647478508,0.04206134,3258.7,3258.0,3.2078]
[1737647478720,2.55612,3258.6,3258.0,3.2078]
[1737647478915,2.55612,3258.6,3257.7,40.8]
[1737647478916,0.04206134,3258.7,3258.4,3.2078]
[1737647479325,0.04666144,3258.6,3258.5,2.52974]
[1737647480021,0.04666144,3258.6,3258.5,1.916]
[1737647480224,0.04666144,3258.6,3258.4,3.2078]
[1737647480418,0.04206134,3258.5,3258.4,3.2078]
[1737647481125,0.65580134,3258.5,3258.4,3.2078]
[1737647481324,0.6138,3258.2,3258.0,0.0046001]
[1737647481722,1.99976134,3258.5,3258.0,0.0046001]
[1737647481723,2.61351134,3258.5,3258.0,0.0046001]
[1737647482020,0.61377,3258.4,3258.0,0.0046001]
[1737647482419,0.04206134,3258.2,3258.0,0.0046001]
[1737647483020,0.04206134,3258.2,3258.0,0.6184201]
[1737647483227,0.04206134,3258.2,3258.0,0.0046001]
[1737647483524,0.04206134,3258.1,3258.0,0.0046001]
[1737647484226,0.65587134,3258.1,3258.0,0.0046001]
[1737647485719,0.6139,3257.6,3257.5,3.2078]
[1737647486528,0.65596134,3257.6,3257.5,3.2078]
[1737647486726,0.04206134,3257.6,3257.5,3.2078]
[1737647487330,0.61396,3257.3,3257.2,0.0046001]
[1737647487532,0.04206134,3257.3,3257.2,0.0046001]
[1737647490234,0.65602134,3257.3,3257.2,0.0046001]
[1737647491128,0.04206134,3257.3,3257.2,0.0046001]
[1737647492526,0.65602134,3257.3,3257.2,0.0046001]
[1737647493131,0.61409,3256.6,3256.5,3.2078]
[1737647493739,0.65615134,3256.6,3256.5,3.2078]
[1737647494034,0.04206134,3256.6,3256.5,3.2078]
[1737647494535,0.04206134,3256.6,3256.5,3.82191]
[1737647494935,3.2078,3257.3,3256.5,3.2078]
[1737647495123,3.2078,3257.3,3256.6,1.9847]
[1737647495733,3.2078,3257.3,3257.0,0.61401]
[1737647496037,0.61388,3257.8,3257.1,0.61399]
[1737647496229,0.0046001,3257.5,3257.1,0.614]
[1737647496434,0.0046001,3257.5,3256.9,3.2078]
[1737647497140,0.61402,3257.0,3256.9,3.2078]
[1737647497334,0.61399,3257.2,3256.9,3.2078]
[1737647497928,0.61399,3257.2,3256.2,0.25379732]
[1737647497929,1.903,3257.4,3256.5,3.2078]
[1737647498132,0.61413,3256.4,3256.2,0.00307149]
[1737647498334,0.61415,3256.3,3256.2,0.00307149]
[1737647498549,2.89346942,3256.0,3255.3,3.2078]
[1737647498833,3.2078,3256.2,3255.3,3.2078]
[1737647499036,0.61417,3256.2,3255.7,3.2078]
[1737647499242,0.61419,3256.1,3255.7,3.2078]
[1737647499538,0.61424,3255.8,3255.7,3.2078]
[1737647499734,1.9292,3256.0,3255.6,0.00460737]
[1737647500137,3.82206,3255.7,3255.6,0.00460737]
[1737647501538,3.2078,3255.7,3255.6,0.00460737]
[1737647501731,3.82009706,3255.7,3255.6,0.00460737]
[1737647502132,1.7995,3255.9,3255.6,0.00460737]
[1737647502133,5.0073,3255.9,3255.6,0.00460737]
[1737647502440,2.99264582,3274.9,3255.6,0.00460737]
[1737647502441,3.2078,3256.3,3255.6,0.00460737]
[1737647502644,3.2078,3256.3,3255.6,3.72850737]
[1737647502830,3.2078,3256.3,3255.8,0.61423]
[1737647503029,3.2078,3256.3,3255.6,3.72850737]
[1737647503030,3.2078,3256.7,3255.9,3.2078]
[1737647503241,0.61416,3256.3,3255.9,3.2078]
[1737647503440,3.2078,3256.7,3255.9,3.2078]
[1737647503744,0.6142,3256.1,3255.9,3.2078]
[1737647503940,0.61419,3256.2,3255.6,1.88470737]
[1737647504241,3.2078,3256.7,3255.6,1.88470737]
[1737647504439,3.2078,3256.3,3255.6,1.88470737]
[1737647504735,3.2078,3256.3,3255.6,0.00460737]
[1737647504736,0.61419,3256.1,3255.6,0.00460737]
[1737647504940,1.8886,3256.2,3255.6,0.00460737]
[1737647505146,0.61424,3255.9,3255.6,0.00460737]
[1737647505641,1.8661,3256.1,3255.6,0.00460737]
[1737647506339,2.4803,3256.1,3255.6,0.00460737]
[1737647506543,1.8661,3256.1,3255.6,0.00460737]
[1737647506944,6.10126942,3256.8,3255.6,0.00460737]
[1737647507138,0.61414,3256.4,3255.7,41.41426]
[1737647507343,0.61416,3256.3,3255.6,0.61887737]
[1737647507839,0.61419,3256.1,3255.6,0.00460737]
[1737647508047,0.61418,3256.2,3255.6,0.00460737]
[1737647508640,6.9193,3256.7,3255.6,0.00460737]
[1737647508848,0.61411,3256.5,3255.9,3.2078]
[1737647509150,1.8661,3256.7,3256.4,3.2078]
[1737647509548,0.6141,3256.6,3256.0,5.0832]
[1737647509941,1.8661,3256.7,3256.0,5.0832]
[1737647509942,0.61414,3256.4,3256.0,5.0832]
[1737647510248,2.89346942,3256.4,3255.6,0.00460737]
[1737647510449,0.61417,3256.2,3255.6,0.00460737]
[1737647510745,0.61421,3256.0,3255.6,0.00460737]
[1737647510949,1.941,3256.3,3255.6,0.00460737]
[1737647511245,3.82206,3255.7,3255.6,0.00460737]
[1737647511748,1.53573,3255.6,3254.9,3.2078]
[1737647511950,2.89346942,3255.0,3254.5,3.2078]
[1737647512141,0.61443,3254.8,3254.5,3.2078]
[1737647512447,0.61445,3254.7,3254.5,3.2078]
[1737647512650,3.82222,3254.9,3254.5,3.2078]
[1737647512838,3.2078,3254.9,3254.5,3.2078]
[1737647513147,1.53555,3256.0,3254.5,3.2078]
[1737647513148,0.00460737,3255.0,3254.5,3.2078]
[1737647513447,0.00460737,3255.0,3254.9,3.82221]
[1737647513648,0.00460737,3255.0,3254.9,3.2078]
[1737647514139,0.00460737,3255.0,3254.6,1.8066]
[1737647514344,0.61901737,3255.0,3254.6,1.8066]
[1737647514542,0.00460737,3255.0,3254.6,1.8066]
[1737647514745,0.61901737,3255.0,3254.6,1.8066]
[1737647514949,0.61442,3254.9,3254.6,1.8066]
[1737647515252,0.61442,3254.9,3254.5,3.2078]
[1737647515642,2.89346942,3254.8,3254.0,7.0695]
[1737647515841,0.00460737,3255.0,3254.0,7.0695]
[1737647516043,0.61446,3254.7,3254.0,7.68407]
[1737647516248,0.61901737,3255.0,3254.4,3.2078]
[1737647516446,2.89346942,3254.8,3254.0,7.0695]
[1737647516643,3.50790942,3254.8,3254.0,7.68408]
[1737647516854,0.61444,3254.8,3254.0,7.68408]
[1737647517161,0.61446,3254.7,3254.0,7.0695]
[1737647517345,0.00460737,3255.0,3254.1,2.89346942]
[1737647517549,0.00460737,3255.0,3254.4,3.2078]
[1737647518049,0.00460737,3255.0,3254.4,44.0078]
[1737647518355,0.00460737,3255.0,3254.4,44.6223]
[1737647518551,0.00460737,3255.0,3254.4,44.0078]
[1737647519250,0.00460737,3255.0,3254.4,44.6223]
[1737647519447,0.00460737,3255.0,3254.4,44.0078]
[1737647519641,0.00460737,3255.0,3254.6,0.61446]
[1737647520044,0.00460737,3255.0,3254.5,1.8938]
[1737647520343,0.00460737,3255.0,3254.4,44.0078]
[1737647520656,0.00460737,3255.0,3254.4,3.2078]
[1737647520962,0.61442,3254.9,3254.4,3.2078]
[1737647521148,2.89346942,3254.8,3254.4,3.2078]
[1737647521558,3.50789942,3254.8,3254.4,3.2078]
[1737647522151,2.89346942,3254.8,3254.4,3.2078]
[1737647522352,3.50790942,3254.8,3254.4,3.2078]
[1737647522559,0.61445,3254.7,3254.4,3.2078]
[1737647522759,2.89346942,3254.8,3254.4,3.2078]
[1737647522959,0.61900737,3255.0,3254.4,3.2078]
[1737647523154,0.61443,3254.9,3254.4,3.2078]
[1737647523465,6.10126942,3254.8,3254.0,7.0695]
[1737647523766,0.6145,3254.5,3254.0,7.0695]
[1737647524561,1.925,3254.7,3254.0,5.1973]
[1737647524562,0.61454,3254.3,3254.0,5.1973]
[1737647524859,7.97516942,3254.4,3253.6,3.2078]
[1737647525060,0.61469,3253.5,3253.2,3.2078]
[1737647525250,2.89346942,3253.9,3253.2,3.2078]
[1737647525251,0.6147,3253.4,3253.2,3.2078]
[1737647525659,2.89346942,3253.5,3253.2,3.2078]
[1737647525855,0.61472,3253.3,3253.2,3.2078]
[1737647526055,0.61485,3252.6,3252.5,3.2078]
[1737647526253,0.61492,3252.2,3252.1,4.76169839]
[1737647526456,3.50838942,3252.2,3252.1,4.76169839]
[1737647527463,0.61496,3252.0,3251.9,4.88614608]
[1737647527664,3.82276,3252.0,3251.9,4.88614608]
[1737647528059,3.2078,3252.4,3251.4,0.61506]
[1737647528361,3.35779866,3251.7,3251.3,5.0785]
[1737647528563,3.35779866,3251.7,3251.3,5.69358]
[1737647528759,0.61497,3252.0,3251.4,0.61507]
[1737647529060,5.20339866,3252.8,3251.9,3.2078]
[1737647529264,0.00460737,3252.9,3252.4,3.2078]
[1737647529458,0.61481,3252.8,3252.4,3.2078]
[1737647529660,0.61484,3252.7,3252.5,40.8]
[1737647529862,3.35779866,3252.8,3252.4,3.2078]
[1737647530552,3.35779866,3252.8,3252.4,3.82268]
[1737647530754,3.35779866,3252.8,3252.4,3.2078]
[1737647531354,3.97261866,3252.8,3252.4,3.2078]
[1737647531563,0.61483,3252.7,3251.8,3.2078]
[1737647531765,3.21240737,3252.9,3252.4,0.61487]
[1737647531963,3.21240737,3252.9,3252.3,3.2078]
[1737647532162,0.00460737,3252.9,3252.8,0.61481]
[1737647533159,3.82241,3253.9,3253.0,0.61476]
[1737647533359,1.9761,3254.2,3252.5,3.6832]
[1737647533360,1.9761,3254.2,3253.6,3.2078]
[1737647533556,3.2078,3254.3,3253.6,3.2078]
[1737647534061,3.2078,3254.8,3254.0,3.2078]
[1737647534363,0.00460737,3254.3,3254.0,3.2078]
[1737647534561,0.00460737,3254.3,3254.1,0.00460737]
[1737647536174,0.00460737,3254.3,3254.2,0.61455]
[1737647537168,0.00460737,3254.3,3254.2,5.61455]
[1737647537374,0.00460737,3254.3,3254.2,0.61455]
[1737647538879,3.2078,3255.4,3254.2,8.35779866]
[1737647539077,3.2078,3255.4,3254.7,0.61445]